bitfinex/quotes_SOLUSD_20240530
["timestamp","ask_amount","ask_price","bid_price","bid_amount"]
[1717073801876,7.16607019,167.74,167.64,47.207]
[1717073802089,17.19867902,167.77,167.64,47.207]
[1717073802090,7.16607019,167.73,167.64,47.207]
[1717073802305,7.16607019,167.72,167.64,47.207]
[1717073802596,7.16607019,167.71,167.64,47.207]
[1717073802894,7.16607019,167.7,167.64,47.207]
[1717073803196,7.16607019,167.69,167.64,47.207]
[1717073803382,24.36480893,167.72,167.64,24.3542]
[1717073803586,7.16612991,167.71,167.65,45.0]
[1717073803800,7.16612991,167.7,167.65,45.0]
[1717073803995,7.16612991,167.69,167.66,16.3158]
[1717073804188,24.36480893,167.74,167.67,51.4531]
[1717073804381,7.16612991,167.73,167.67,51.4531]
[1717073804575,7.16612991,167.72,167.64,2.207]
[1717073804776,7.16612991,167.72,167.63,8.7645]
[1717073804995,7.16612991,167.71,167.64,2.207]
[1717073805292,7.16612991,167.7,167.64,2.207]
[1717073805700,17.19867902,167.74,167.64,2.207]
[1717073805902,7.16612991,167.73,167.64,8.3452]
[1717073806291,7.16612991,167.72,167.64,8.3452]
[1717073806498,7.16612991,167.71,167.64,6.1382]
[1717073806803,7.16612991,167.7,167.64,6.1382]
[1717073807005,24.36480893,167.73,167.64,6.1382]
[1717073807180,7.16612991,167.72,167.63,15.948]
[1717073807502,7.16612991,167.71,167.63,15.948]
[1717073807880,7.16612991,167.7,167.63,15.948]
[1717073808188,7.16612991,167.69,167.65,15.6794]
[1717073808391,24.36480893,167.74,167.66,6.0067]
[1717073808590,24.36480893,167.73,167.66,6.0067]
[1717073808790,7.16612991,167.72,167.66,6.0067]
[1717073809006,7.16612991,167.71,167.66,6.0067]
[1717073809502,7.16612991,167.7,167.66,6.0067]
[1717073809701,7.16612991,167.69,167.66,6.0067]
[1717073809905,24.36480893,167.75,167.66,6.0067]
[1717073810196,24.36480893,167.74,167.66,6.0067]
[1717073810400,7.16612991,167.73,167.66,6.0067]
[1717073810601,7.16612991,167.73,167.6,21.6164]
[1717073810905,8.95773856,167.63,167.62,23.689]
[1717073811105,8.95773856,167.63,167.62,68.689]
[1717073812395,8.95773856,167.63,167.62,66.4817]
[1717073812784,8.95773856,167.63,167.62,68.689]
[1717073814488,8.95773764,167.63,167.62,68.689]
[1717073817389,8.95773764,167.63,167.62,146.699]
[1717073817795,8.95773764,167.63,167.62,167.209]
[1717073818021,8.95773764,167.63,167.62,107.209]
[1717073818717,8.45773764,167.63,167.62,107.209]
[1717073821518,8.45773764,167.63,167.62,23.689]
[1717073822419,8.45773764,167.63,167.62,41.699]
[1717073822807,8.45773764,167.63,167.62,86.699]
[1717073823798,8.45773764,167.63,167.62,68.689]
[1717073824135,8.45773764,167.63,167.62,23.689]
[1717073824619,8.45773764,167.63,167.62,30.529]
[1717073824820,6.84,167.72,167.63,2.2072]
[1717073825008,24.36499415,167.71,167.65,6.84]
[1717073825215,7.16613787,167.7,167.63,2.2072]
[1717073825426,7.16613787,167.7,167.66,6.84]
[1717073825631,7.16613787,167.69,167.67,45.0]
[1717073825806,17.19885628,167.77,167.68,6.84]
[1717073826119,24.36486277,167.76,167.69,6.84]
[1717073826320,24.36486277,167.75,167.69,6.84]
[1717073826618,30.037644,167.78,167.69,6.84]
[1717073826619,24.36486277,167.74,167.69,6.84]
[1717073826800,24.36486277,167.74,167.67,45.0]
[1717073826801,7.16600649,167.73,167.7,6.84]
[1717073826995,24.36486277,167.72,167.7,6.84]
[1717073827214,24.36486277,167.71,167.7,6.84]
[1717073827519,24.36486277,167.71,167.67,45.0]
[1717073827822,7.16600649,167.7,167.69,6.84]
[1717073828125,7.16600649,167.7,167.69,51.84]
[1717073828619,24.36432141,167.75,167.64,22.5348]
[1717073828831,24.36432141,167.74,167.64,24.7418]
[1717073829036,17.19831492,167.73,167.67,6.84]
[1717073829198,24.36432141,167.72,167.68,6.84]
[1717073829524,24.36432141,167.71,167.68,6.84]
[1717073829695,7.16600649,167.71,167.68,6.84]
[1717073829896,7.16600649,167.7,167.68,6.84]
[1717073830113,7.16600649,167.69,167.67,6.84]
[1717073830418,24.36432141,167.74,167.67,6.84]
[1717073830622,24.36439636,167.73,167.67,6.84]
[1717073830823,24.36439636,167.72,167.7,6.84]
[1717073831031,24.36439636,167.71,167.7,6.84]
[1717073831202,7.16608144,167.71,167.7,6.84]
[1717073832032,24.36439636,167.74,167.7,6.84]
[1717073832327,24.36439636,167.73,167.65,66.9206]
[1717073832630,24.36439636,167.72,167.67,6.84]
[1717073832929,24.36439636,167.71,167.68,6.84]
[1717073833102,7.16608144,167.7,167.68,6.84]
[1717073833303,24.36439636,167.76,167.65,8.5131]
[1717073833609,24.36439636,167.75,167.67,6.84]
[1717073833805,7.16608144,167.74,167.68,6.84]
[1717073834013,7.16608144,167.73,167.68,6.84]
[1717073834218,7.16608144,167.72,167.68,6.84]
[1717073834424,7.16608144,167.71,167.66,2.2068]
[1717073834638,7.16608144,167.7,167.68,6.84]
[1717073834927,7.16608144,167.69,167.68,6.84]
[1717073835097,24.36439636,167.75,167.68,51.84]
[1717073835303,7.16608144,167.74,167.68,51.84]
[1717073835519,7.16608144,167.73,167.68,51.84]
[1717073835730,7.16608144,167.72,167.68,51.84]
[1717073835902,7.16608144,167.71,167.68,51.84]
[1717073836102,7.16608144,167.7,167.68,51.84]
[1717073836329,7.16608144,167.69,167.68,51.84]
[1717073836508,24.36439636,167.75,167.68,51.84]
[1717073836710,24.36439636,167.74,167.69,45.0]
[1717073837030,10.99687426,167.78,167.69,45.0]
[1717073837031,24.36439636,167.73,167.69,45.0]
[1717073837227,24.36439636,167.72,167.69,45.0]
[1717073837424,7.16608144,167.71,167.69,45.0]
[1717073837608,7.16608144,167.7,167.69,51.84]
[1717073837927,23.898505,167.79,167.71,21.423]
[1717073837928,17.19850931,167.75,167.71,21.423]
[1717073838126,7.16581134,167.74,167.73,6.84]
[1717073839024,7.16581134,167.74,167.73,9.0459]
[1717073839232,7.16581134,167.74,167.73,6.84]
[1717073839423,7.16581134,167.74,167.71,17.5456]
[1717073839625,24.36432065,167.76,167.73,6.84]
[1717073839823,7.16575906,167.75,167.73,6.84]
[1717073840132,24.36426837,167.8,167.73,6.84]
[1717073840335,24.36426837,167.79,167.73,6.84]
[1717073840635,24.36426837,167.78,167.73,6.84]
[1717073840929,24.36426837,167.77,167.73,6.84]
[1717073841125,7.16575906,167.76,167.73,6.84]
[1717073841335,24.36426837,167.8,167.73,6.84]
[1717073841507,24.36426837,167.79,167.73,6.84]
[1717073841708,24.36426837,167.78,167.73,6.84]
[1717073842033,24.36426837,167.77,167.72,13.0286]
[1717073842236,24.36426837,167.76,167.72,13.0286]
[1717073842414,7.16575906,167.75,167.72,13.0286]
[1717073842731,7.16575906,167.74,167.72,6.1886]
[1717073842941,24.36426837,167.79,167.72,6.1886]
[1717073843112,24.36426837,167.78,167.72,6.1886]
[1717073843312,24.36426837,167.77,167.72,6.1886]
[1717073843526,7.16575906,167.76,167.72,6.1886]
[1717073844211,24.36426837,167.76,167.72,6.1886]
[1717073844412,24.36426837,167.75,167.7,2.2062]
[1717073844633,7.16575906,167.75,167.7,2.2062]
[1717073844830,7.16575906,167.74,167.7,2.2062]
[1717073845015,24.36426837,167.79,167.69,54.0463]
[1717073845221,24.36426837,167.78,167.68,2.2065]
[1717073845421,24.36426837,167.77,167.67,23.431]
[1717073845652,17.19850931,167.76,167.67,21.2244]
[1717073845849,7.16575906,167.77,167.67,21.2244]
[1717073846048,7.16575906,167.76,167.67,21.2244]
[1717073846222,7.16575906,167.76,167.67,23.431]
[1717073846428,7.16575906,167.75,167.67,23.431]
[1717073846637,30.66426837,167.76,167.65,2.2069]
[1717073846826,7.16575906,167.75,167.65,2.2069]
[1717073847248,17.19850931,167.74,167.62,2.2073]
[1717073847459,24.36426837,167.73,167.61,2.2074]
[1717073847654,6.84,167.67,167.59,22.5813]
[1717073847830,8.95796644,167.61,167.6,9.0476]
[1717073848029,8.95796644,167.61,167.6,31.6289]
[1717073848351,8.95796644,167.61,167.6,24.7889]
[1717073848525,45.0,167.74,167.6,31.6289]
[1717073848728,24.36584275,167.73,167.6,31.6289]
[1717073848963,8.95802338,167.61,167.6,31.6289]
[1717073849248,8.95802338,167.61,167.54,5.996655]
[1717073849423,8.95802338,167.57,167.55,2.2082]
[1717073849628,8.95802338,167.57,167.56,28.8786]
[1717073849838,8.95802338,167.57,167.56,24.2467]
[1717073850043,8.95802338,167.57,167.56,31.0867]
[1717073850345,8.95802338,167.57,167.56,24.2467]
[1717073850529,8.95802338,167.57,167.56,49.0967]
[1717073850863,8.95802338,167.57,167.56,42.2567]
[1717073851228,8.95802338,167.58,167.57,84.2584]
[1717073851428,8.95802338,167.58,167.57,91.0984]
[1717073851660,8.95802338,167.58,167.57,84.2584]
[1717073852125,8.95802338,167.58,167.57,91.0984]
[1717073852322,8.95802338,167.58,167.57,136.0984]
[1717073853252,8.95802338,167.58,167.57,154.1084]
[1717073853465,13.4683,167.72,167.6,2.2075]
[1717073853646,24.36543895,167.71,167.66,6.84]
[1717073853950,6.521,167.7,167.61,2.2074]
[1717073854242,6.521,167.7,167.61,47.2074]
[1717073854448,17.19912967,167.71,167.61,47.2074]
[1717073854656,23.42142967,167.74,167.67,6.84]
[1717073854836,24.36497083,167.73,167.67,6.84]
[1717073855150,13.2407905,167.72,167.62,2.2073]
[1717073855350,24.36497083,167.71,167.67,6.84]
[1717073855553,6.0746,167.69,167.64,6.84]
[1717073855725,6.0746,167.69,167.65,6.84]
[1717073855726,17.19878033,167.69,167.65,6.84]
[1717073855922,24.03878033,167.7,167.64,6.84]
[1717073856353,6.0746,167.73,167.63,2.2072]
[1717073856354,17.19878033,167.72,167.63,2.2072]
[1717073856528,14.00624774,167.71,167.65,6.84]
[1717073856733,7.16621957,167.7,167.65,6.84]
[1717073856942,24.3649999,167.7,167.63,2.2072]
[1717073857130,17.19878033,167.7,167.65,6.84]
[1717073857336,17.19878033,167.72,167.65,6.84]
[1717073857633,17.19878033,167.71,167.64,6.84]
[1717073857936,24.36498367,167.7,167.64,6.84]
[1717073858150,6.84,167.71,167.63,2.2072]
[1717073858354,24.36498493,167.7,167.65,6.84]
[1717073858656,17.19878033,167.7,167.65,6.84]
[1717073859237,17.19878033,167.7,167.63,2.2072]
[1717073859454,17.19878033,167.7,167.65,6.84]
[1717073860757,17.19878033,167.7,167.63,2.2072]
[1717073861145,17.19878033,167.72,167.65,6.84]
[1717073861334,24.36498113,167.71,167.65,6.84]
[1717073861534,24.36498113,167.7,167.65,6.84]
[1717073861835,17.19878033,167.69,167.65,6.84]
[1717073862162,6.0746,167.73,167.65,6.84]
[1717073862454,24.365039,167.72,167.65,6.84]
[1717073862756,24.365039,167.71,167.65,6.84]
[1717073862934,7.16619954,167.7,167.65,6.84]
[1717073863133,24.365039,167.7,167.64,6.84]
[1717073863349,24.365039,167.69,167.64,6.84]
[1717073863558,17.19883946,167.72,167.64,6.84]
[1717073863852,24.36517168,167.71,167.64,6.84]
[1717073864064,24.36517168,167.7,167.65,45.0]
[1717073864247,17.19893221,167.72,167.64,6.84]
[1717073864449,24.36512845,167.71,167.64,6.84]
[1717073864762,24.36512845,167.7,167.64,6.84]
[1717073864929,17.19893221,167.72,167.64,6.84]
[1717073865131,24.36513428,167.71,167.64,6.84]
[1717073865331,24.36513428,167.7,167.64,6.84]
[1717073865633,17.19893221,167.69,167.65,51.84]
[1717073865846,6.0746,167.73,167.65,51.84]
[1717073865847,17.19893221,167.72,167.65,51.84]
[1717073866048,7.1662008,167.71,167.62,25.0621]
[1717073866248,6.0746,167.73,167.64,6.84]
[1717073866249,17.19883033,167.7,167.64,6.84]
[1717073866458,24.36503113,167.69,167.64,6.84]
[1717073866663,7.1662008,167.69,167.64,6.84]
[1717073866840,17.19904437,167.72,167.64,6.84]
[1717073867039,24.36533047,167.71,167.64,6.84]
[1717073867241,24.36533047,167.7,167.64,6.84]
[1717073867461,24.36533047,167.69,167.64,6.84]
[1717073867637,6.0746,167.73,167.64,6.84]
[1717073867834,24.36518996,167.72,167.64,6.84]
[1717073868055,18.96377714,167.71,167.64,6.84]
[1717073868244,17.19894248,167.7,167.64,6.84]
[1717073868449,17.19894248,167.69,167.64,6.84]
[1717073868762,6.0746,167.73,167.63,51.84]
[1717073869068,17.19903524,167.72,167.63,45.0]
[1717073869244,17.19903524,167.71,167.63,51.84]
[1717073869443,24.36532457,167.7,167.64,6.84]
[1717073869655,17.19903524,167.69,167.64,6.84]
[1717073869844,17.19903524,167.68,167.63,45.0]
[1717073870040,17.19903524,167.72,167.63,45.0]
[1717073870241,24.36528875,167.71,167.64,6.84]
[1717073870465,17.19900632,167.7,167.64,6.84]
[1717073870667,24.36528875,167.69,167.64,6.84]
[1717073870854,17.19900632,167.68,167.64,6.84]
[1717073871055,6.0746,167.73,167.64,6.84]
[1717073871367,24.36504522,167.72,167.64,6.84]
[1717073871547,17.1988344,167.71,167.64,6.84]
[1717073871742,17.1988344,167.7,167.63,45.0]
[1717073871966,17.1988344,167.69,167.64,6.84]
[1717073872172,17.19893643,167.68,167.64,6.84]
[1717073872367,17.19893643,167.72,167.64,6.84]
[1717073872555,18.96377411,167.71,167.64,6.84]
[1717073872865,17.19893945,167.7,167.64,6.84]
[1717073873070,17.19893945,167.69,167.58,2.2078]
[1717073873366,8.95785808,167.6,167.59,24.0716]
[1717073873566,8.95785808,167.6,167.59,30.9116]
[1717073874067,17.19917887,167.7,167.61,2.2074]
[1717073874274,24.36559123,167.69,167.63,6.84]
[1717073874571,17.19917887,167.68,167.63,6.84]
[1717073874772,17.19917887,167.72,167.62,6.84]
[1717073874959,17.19925836,167.71,167.62,6.84]
[1717073875167,17.19925836,167.71,167.6,2.2075]
[1717073875361,17.19925836,167.7,167.59,24.0716]
[1717073875661,17.19925836,167.69,167.59,28.7039]
[1717073875860,17.19925836,167.68,167.59,28.7039]
[1717073876160,17.19925836,167.67,167.6,6.84]
[1717073876362,17.19925836,167.7,167.6,6.84]
[1717073876573,24.36612752,167.69,167.6,6.84]
[1717073876744,24.36612752,167.68,167.6,6.84]
[1717073876946,17.19960028,167.71,167.61,6.84]
[1717073877169,69.36604913,167.7,167.6,6.84]
[1717073877347,24.36604913,167.69,167.61,6.84]
[1717073877551,17.19960028,167.68,167.61,6.84]
[1717073877848,17.19960028,167.67,167.61,6.84]
[1717073878056,17.19960028,167.66,167.59,21.8639]
[1717073878261,17.19960028,167.65,167.59,21.8639]
[1717073878442,45.0,167.7,167.61,6.84]
[1717073878640,17.19939228,167.69,167.61,6.84]
[1717073878846,17.19939228,167.68,167.59,21.8639]
[1717073879146,17.19939228,167.67,167.61,6.84]
[1717073879474,45.0,167.7,167.62,22.9348]
[1717073879475,17.19939228,167.66,167.62,22.9348]
[1717073879646,6.0746,167.73,167.62,29.7748]
[1717073879852,69.36577586,167.72,167.59,24.1228]
[1717073880051,24.36577586,167.71,167.62,6.84]
[1717073880251,24.36577586,167.71,167.54,8.8335]
[1717073880252,10.2678,167.69,167.52,27.36]
[1717073880452,8.95797554,167.56,167.53,6.615]
[1717073880664,70.44189073,167.68,167.55,6.84]
[1717073880665,8.95797554,167.57,167.55,6.84]
[1717073880975,8.95840481,167.57,167.56,21.7927]
[1717073881472,8.95840481,167.57,167.56,13.455]
[1717073881774,8.95840481,167.57,167.56,29.3826]
[1717073881960,8.95840481,167.57,167.56,22.5426]
[1717073882162,8.95840481,167.57,167.56,29.3826]
[1717073882363,8.95840481,167.57,167.56,22.5426]
[1717073882594,8.95840481,167.57,167.56,29.3826]
[1717073882754,8.95840481,167.57,167.56,22.5426]
[1717073883276,8.95840481,167.57,167.56,29.3826]
[1717073883469,8.95840481,167.57,167.56,74.3826]
[1717073884864,8.95840481,167.57,167.56,76.5907]
[1717073885058,8.95840481,167.57,167.56,69.7507]
[1717073885262,8.95840481,167.57,167.56,76.5907]
[1717073888891,6.84,167.62,167.56,6.84]
[1717073889094,6.84,167.63,167.57,6.84]
[1717073889389,6.84,167.63,167.54,15.7014]
[1717073889568,8.95864258,167.55,167.54,22.1442]
[1717073889762,8.95864258,167.56,167.54,24.3526]
[1717073889982,8.95864258,167.56,167.54,17.9098]
[1717073890166,8.95864258,167.56,167.55,6.84]
[1717073890559,8.95864258,167.56,167.55,13.0673]
[1717073890973,8.95864258,167.56,167.55,29.1466]
[1717073891200,8.95864258,167.56,167.55,24.5148]
[1717073891378,8.95864258,167.56,167.55,76.3548]
[1717073893406,8.95864258,167.56,167.55,94.3648]
[1717073893597,8.95864258,167.56,167.55,76.3548]
[1717073894105,8.95864258,167.56,167.55,94.3648]
[1717073894282,8.95864258,167.56,167.55,154.3648]
[1717073894890,8.95864258,167.56,167.55,158.7813]
[1717073895403,8.95864258,167.56,167.55,174.2392]
[1717073895605,8.95864258,167.56,167.55,176.2292]
[1717073895989,8.95864258,167.56,167.55,194.2392]
[1717073896608,8.95864258,167.56,167.55,176.2292]
[1717073897301,8.95864258,167.56,167.55,116.2292]
[1717073897799,8.95864258,167.56,167.55,176.2292]
[1717073898300,8.95864258,167.56,167.55,194.2392]
[1717073898693,17.19994678,167.67,167.61,2.2074]
[1717073898889,24.36660525,167.66,167.63,6.84]
[1717073899096,17.19994678,167.65,167.63,6.84]
[1717073899305,17.19994678,167.64,167.63,6.84]
[1717073899609,6.84,167.69,167.63,6.84]
[1717073899915,24.36641688,167.68,167.64,6.84]
[1717073900205,24.36641688,167.67,167.63,6.84]
[1717073900382,7.16661002,167.67,167.63,6.84]
[1717073900582,7.16661002,167.66,167.63,6.84]
[1717073900993,17.19980686,167.67,167.63,6.84]
[1717073901201,7.16660527,167.66,167.63,6.84]
[1717073901495,24.3663717,167.69,167.63,6.84]
[1717073901702,24.36636206,167.68,167.63,6.84]
[1717073901925,24.36636206,167.67,167.63,6.84]
[1717073902080,7.16659563,167.67,167.63,6.84]
[1717073902285,7.16659563,167.66,167.63,6.84]
[1717073902622,24.36636206,167.68,167.63,6.84]
[1717073902820,24.36636206,167.67,167.61,2.2074]
[1717073903119,7.16659563,167.66,167.63,6.84]
[1717073903291,17.19976643,167.69,167.63,6.84]
[1717073903493,24.3664086,167.68,167.63,6.84]
[1717073903800,24.3664086,167.67,167.63,6.84]
[1717073903996,7.16664217,167.66,167.63,6.84]
[1717073904204,6.84,167.69,167.63,6.84]
[1717073904422,24.36635848,167.68,167.63,6.84]
[1717073904602,24.36635848,167.67,167.63,6.84]
[1717073904800,7.16664217,167.66,167.61,2.2074]
[1717073904993,17.19971631,167.67,167.63,6.84]
[1717073905314,7.16659817,167.66,167.63,6.84]
[1717073905616,17.19976643,167.7,167.63,6.84]
[1717073905830,24.36636586,167.69,167.63,6.84]
[1717073906012,7.16659943,167.68,167.62,6.84]
[1717073906213,7.16659943,167.67,167.62,6.84]
[1717073906511,7.16659943,167.66,167.63,6.84]
[1717073906720,6.2513,167.71,167.6,47.2075]
[1717073907026,24.36634354,167.7,167.61,6.84]
[1717073907211,24.36634354,167.69,167.61,6.84]
[1717073907534,24.36634354,167.68,167.61,6.84]
[1717073907711,24.36634354,167.67,167.63,6.84]
[1717073907913,7.16659106,167.66,167.63,6.84]
[1717073908219,17.19987801,167.68,167.63,6.84]
[1717073908418,24.36652159,167.67,167.63,6.84]
[1717073908610,7.16664358,167.66,167.63,6.84]
[1717073908935,17.19987801,167.7,167.63,6.84]
[1717073909108,7.16664105,167.69,167.63,6.84]
[1717073909308,11.1392172,167.71,167.63,6.84]
[1717073909309,24.36651906,167.68,167.63,6.84]
[1717073909525,24.36651906,167.67,167.63,6.84]
[1717073909822,7.16664105,167.66,167.62,2.2073]
[1717073910030,11.1392172,167.71,167.63,2.2072]
[1717073910031,17.19967329,167.7,167.63,2.2072]
[1717073910229,24.36621367,167.69,167.67,6.84]
[1717073910435,24.36621367,167.68,167.67,6.84]
[1717073910816,24.36621367,167.68,167.65,2.2069]
[1717073911001,7.16654038,167.67,167.64,2.207]
[1717073911205,17.19911244,167.72,167.66,6.84]
[1717073911512,24.36535479,167.71,167.68,6.84]
[1717073911835,24.36535479,167.7,167.68,6.84]
[1717073912032,24.36535479,167.69,167.68,6.84]
[1717073912214,24.36535479,167.69,167.67,6.84]
[1717073912412,24.36535479,167.68,167.67,6.84]
[1717073912822,7.16624235,167.68,167.67,6.84]
[1717073913703,24.36535479,167.68,167.67,6.84]
[1717073913912,7.16624235,167.68,167.67,6.84]
[1717073914716,24.36535479,167.68,167.67,6.84]
[1717073915516,7.16624235,167.68,167.67,6.84]
[1717073916520,7.16624235,167.68,167.65,2.2069]
[1717073916731,17.19857799,167.72,167.67,6.84]
[1717073916907,7.16617673,167.71,167.66,6.84]
[1717073917110,7.16617673,167.71,167.64,24.7738]
[1717073917111,7.16617673,167.7,167.64,2.207]
[1717073917313,7.16617673,167.69,167.66,6.84]
[1717073917512,7.16617673,167.68,167.66,6.84]
[1717073917740,7.16617673,167.67,167.66,6.84]
[1717073918111,17.19894555,167.71,167.66,6.84]
[1717073918413,7.16617673,167.7,167.65,6.84]
[1717073918846,7.16617673,167.69,167.65,6.84]
[1717073919018,7.16617673,167.68,167.65,6.84]
[1717073919219,7.16617673,167.67,167.65,6.84]
[1717073919424,17.19894555,167.72,167.65,6.84]
[1717073919623,24.36526666,167.71,167.65,6.84]
[1717073919933,24.36526666,167.7,167.66,6.84]
[1717073920238,7.16632111,167.69,167.66,6.84]
[1717073920535,11.35914358,167.73,167.66,6.84]
[1717073920536,7.16632111,167.68,167.66,6.84]
[1717073920758,7.16632111,167.67,167.66,6.84]
[1717073921050,24.36532448,167.7,167.66,6.84]
[1717073921246,7.16632111,167.69,167.66,6.84]
[1717073921444,7.16632111,167.68,167.66,6.84]
[1717073921656,7.16632111,167.67,167.66,6.84]
[1717073921952,24.36532965,167.7,167.66,6.84]
[1717073922251,7.16632111,167.69,167.66,6.84]
[1717073922457,7.16632111,167.68,167.66,6.84]
[1717073922749,7.16632111,167.67,167.66,6.84]
[1717073923054,24.36530718,167.7,167.66,6.84]
[1717073923220,7.16632111,167.69,167.66,6.84]
[1717073923427,7.16632111,167.68,167.66,6.84]
[1717073923646,7.16632111,167.67,167.66,6.84]
[1717073923832,24.36530718,167.69,167.66,6.84]
[1717073924030,7.16632111,167.68,167.66,6.84]
[1717073924233,7.16632111,167.67,167.66,6.84]
[1717073924958,7.16632111,167.69,167.66,6.84]
[1717073925155,7.16632111,167.68,167.66,6.84]
[1717073925333,7.16632111,167.67,167.66,6.84]
[1717073925534,7.16632111,167.7,167.66,6.84]
[1717073925839,7.16632111,167.69,167.66,9.0468]
[1717073926039,7.16632111,167.68,167.66,9.0468]
[1717073926237,7.16632111,167.67,167.66,9.0468]
[1717073926451,24.36532692,167.7,167.66,54.0468]
[1717073926746,7.16620455,167.69,167.67,6.84]
[1717073927127,7.16620455,167.68,167.67,6.84]
[1717073934264,7.16620455,167.68,167.66,6.84]
[1717073934471,17.19890575,167.72,167.66,6.84]
[1717073934644,7.16615716,167.71,167.66,6.84]
[1717073934963,7.16615716,167.7,167.65,6.84]
[1717073935163,7.16615716,167.7,167.66,45.0]
[1717073935367,7.16615716,167.69,167.66,45.0]
[1717073935665,7.16615716,167.68,167.66,45.0]
[1717073935873,17.19890575,167.72,167.66,45.0]
[1717073936175,24.36506799,167.71,167.66,45.0]
[1717073936370,7.16616224,167.71,167.66,45.0]
[1717073936562,7.16616224,167.7,167.66,45.0]
[1717073936871,7.16616224,167.69,167.66,45.0]
[1717073937072,7.16616224,167.68,167.66,45.0]
[1717073937267,7.16616224,167.67,167.66,45.0]
[1717073937773,17.19890575,167.72,167.66,45.0]
[1717073937947,7.16607816,167.71,167.66,45.0]
[1717073938151,7.16607816,167.7,167.66,45.0]
[1717073938350,7.16607816,167.69,167.66,45.0]
[1717073938567,7.16607816,167.68,167.66,45.0]
[1717073938771,17.19890575,167.74,167.66,45.0]
[1717073939061,24.36500171,167.73,167.66,45.0]
[1717073939272,24.36500171,167.72,167.66,45.0]
[1717073939487,7.16609596,167.71,167.66,45.0]
[1717073939656,7.16609596,167.7,167.66,45.0]
[1717073939972,7.16609596,167.69,167.66,45.0]
[1717073940150,7.16609596,167.68,167.66,45.0]
[1717073940360,17.19890575,167.71,167.66,45.0]
[1717073940568,7.16602604,167.7,167.66,45.0]
[1717073940870,7.16602604,167.69,167.66,45.0]
[1717073941170,7.16602604,167.68,167.66,45.0]
[1717073941369,17.19890575,167.74,167.66,45.0]
[1717073941576,24.36496537,167.73,167.66,45.0]
[1717073941775,17.19890575,167.72,167.66,45.0]
[1717073941973,7.16605962,167.71,167.66,45.0]
[1717073942278,7.16605962,167.7,167.66,45.0]
[1717073942478,24.36496537,167.7,167.66,45.0]
[1717073942658,7.16605962,167.69,167.66,45.0]
[1717073942860,7.16605962,167.68,167.66,45.0]
[1717073943069,17.19858116,167.72,167.66,45.0]
[1717073943265,7.16606941,167.71,167.66,47.2068]
[1717073943469,7.16606941,167.7,167.66,47.2068]
[1717073943669,7.16606941,167.69,167.66,47.2068]
[1717073943958,7.16606941,167.68,167.66,47.2068]
[1717073944161,17.19858116,167.72,167.66,45.0]
[1717073944361,7.16606433,167.71,167.66,45.0]
[1717073944578,7.16606433,167.7,167.66,47.2068]
[1717073944774,17.198555,167.75,167.67,2.2067]
[1717073944775,7.16606433,167.69,167.67,2.2067]
[1717073944965,7.16606433,167.68,167.67,2.2067]
[1717073945283,7.16606433,167.68,167.66,45.0]
[1717073945481,17.19858116,167.71,167.66,45.0]
[1717073945664,7.16609835,167.7,167.66,45.0]
[1717073945980,7.16609835,167.69,167.66,45.0]
[1717073946278,7.16609835,167.68,167.66,45.0]
[1717073946580,17.19858116,167.71,167.66,45.0]
[1717073946786,24.36460936,167.7,167.66,45.0]
[1717073947290,7.1660282,167.69,167.66,45.0]
[1717073947455,7.1660282,167.68,167.66,45.0]
[1717073947652,17.19849128,167.71,167.66,45.0]
[1717073947861,7.1660656,167.7,167.66,45.0]
[1717073948067,7.1660656,167.69,167.66,47.2068]
[1717073948363,7.1660656,167.68,167.66,47.2068]